fUSD/lending_fUSD_20240404
["ID","MTS","AMOUNT","RATE_DAILY","PERIOD"]
[321465442,1712205042816,-2930.015054,0.00044,44]
[321465444,1712205042826,-151.0,0.00044,14]
[321465446,1712205042835,-152.0,0.00044054,3]
[321465448,1712205042845,-302.2,0.0004411,2]
[321465450,1712205042854,-150.0,0.00044124,2]
[321465452,1712205042863,-500.0,0.00044346,4]
[321465454,1712205042872,-500.0,0.00044346,4]
[321465456,1712205042881,-500.0,0.00044346,4]
[321465458,1712205042890,-500.0,0.00044346,4]
[321465460,1712205042899,-500.0,0.00044346,4]
[321465462,1712205042908,-500.0,0.00044346,4]
[321465464,1712205042918,-500.0,0.00044346,4]
[321465466,1712205042927,-500.0,0.00044346,4]
[321465468,1712205042936,-500.0,0.00044346,4]
[321465470,1712205042947,-500.0,0.00044346,4]
[321465472,1712205042956,-500.0,0.00044346,4]
[321465474,1712205042965,-500.0,0.00044346,4]
[321465476,1712205042975,-500.0,0.00044346,4]
[321465478,1712205042984,-500.0,0.00044346,4]
[321465480,1712205042994,-500.0,0.00044346,4]
[321465483,1712205043005,-500.0,0.00044346,4]
[321465485,1712205043015,-500.0,0.00044346,4]
[321465487,1712205043024,-500.0,0.00044346,4]
[321465489,1712205043034,-500.0,0.00044346,4]
[321465491,1712205043043,-314.0,0.00044346,4]
[321465493,1712205043053,-2806.0,0.00044455,7]
[321465495,1712205043063,-302.2,0.0004451,2]
[321465497,1712205043072,-5000.0,0.00044986,4]
[321465499,1712205043081,-150.0,0.00044989,2]
[321465501,1712205043090,-328.47719203,0.00045,4]
[321465503,1712205043100,-700.0,0.00045,7]
[321465505,1712205043109,-157.88190132,0.00045,120]
[321465507,1712205043118,-3952.87033542,0.00045,30]
[321465509,1712205043127,-826.76337583,0.00045,30]
[321465511,1712205043137,-155.0,0.00045,14]
[321465513,1712205043146,-800.0,0.00045,3]
[321465515,1712205043156,-8680.4000365,0.00045018,30]
[321465517,1712205043165,-171029.17301656,0.0004509,2]
[321465519,1712205043174,-12089.86,0.00045125,2]
[321465521,1712205043183,-19591.74,0.00045125,2]
[321465523,1712205043194,-6161.4,0.00045125,2]
[321465525,1712205043203,-152.0,0.00045181,4]
[321465527,1712205043212,-195.12,0.00045205,2]
[321465529,1712205043221,-998.16,0.0004531,2]
[321465531,1712205043231,-302.2,0.0004548,2]
[321465533,1712205043240,-4869.48288449,0.00045609,36]
[321465535,1712205043249,-151.0,0.00045677,7]
[321465537,1712205043259,-998.16,0.0004571,2]
[321465539,1712205043269,-152.0,0.00045745,4]
[321465542,1712205043281,-270.7598411,0.00045761,2]
[321465544,1712205043291,-2431.0,0.00045763,2]
[321465545,1712205043301,-1631.0,0.00045763,2]
[321465548,1712205043310,-216.0,0.00045763,2]
[321465550,1712205043320,-207.0,0.00045763,2]
[321465552,1712205043329,-463.793,0.00045763,2]
[321465554,1712205043338,-898.37,0.00045763,2]
[321465556,1712205043348,-4863.349,0.00045763,2]
[321465558,1712205043359,-22588.916,0.00045763,2]
[321465560,1712205043369,-284.379,0.00045763,2]
[321465562,1712205043378,-899.0,0.00045763,2]
[321465564,1712205043387,-539.0,0.00045763,2]
[321465566,1712205043396,-1180.0,0.00045763,2]
[321465568,1712205043405,-2457.0,0.00045763,2]
[321465570,1712205043413,-284.981,0.00045763,2]
[321465571,1712205043422,-438.369,0.00045763,2]
[321465572,1712205043431,-612.474,0.00045763,2]
[321465601,1712205043739,-1282.464,0.00045763,2]
[321465603,1712205043750,-1059.157,0.00045763,2]
[321465605,1712205043759,-150.985,0.00045763,2]
[321465607,1712205043768,-1140.0,0.00045763,2]
[321465609,1712205043777,-150.0,0.00045854,2]
[321465611,1712205043787,-302.2,0.0004588,2]
[321465613,1712205043796,-1182.53,0.00045963,2]
[321465615,1712205043807,-155.0,0.00046,3]
[321465617,1712205043816,-1616.04313595,0.00046,4]
[321465619,1712205043825,-2325.63,0.00046023,120]
[321465621,1712205043835,-400.026094,0.00046244,30]
[321465623,1712205043844,-2651.783291,0.00046244,30]
[321465625,1712205043853,-217.467859,0.00046244,30]
[321465627,1712205043862,-176.589125,0.00046244,30]
[321465629,1712205043871,-200.79495,0.00046244,30]
[321465631,1712205043881,-193.364569,0.00046244,30]
[321465633,1712205043890,-998.45,0.00046247,15]
[321465635,1712205043900,-3000.0,0.000463,2]
[321465637,1712205043909,-1155.79,0.000464,7]
[321465639,1712205043919,-152.0,0.0004659,5]
[321465641,1712205043929,-150.0,0.0004672,2]
[321465643,1712205043938,-400.026094,0.00046793,30]
[321465645,1712205043948,-400.026094,0.00046822,30]
[321465647,1712205043957,-2651.783291,0.00046822,30]
[321465649,1712205043966,-217.467859,0.00046822,30]
[321465651,1712205043975,-302.2,0.0004685,2]
[321465653,1712205043984,-1103.62,0.000469,7]
[321465655,1712205043993,-1124.69,0.000469,7]
[321465656,1712205044002,-850.0,0.00047,3]
[321465657,1712205044011,-998.16,0.0004708,2]
[321465658,1712205044020,-302.2,0.0004725,2]
[321465659,1712205044030,-400.026094,0.00047378,30]
[321465661,1712205044039,-400.026094,0.00047401,30]
[321465662,1712205044048,-2651.783291,0.00047401,30]
[321465663,1712205044057,-217.467859,0.00047401,30]
[321465664,1712205044069,-152.0,0.00047435,5]
[321465665,1712205044078,-998.16,0.0004748,2]
[321465666,1712205044088,-150.0,0.00047585,2]
[321465667,1712205044098,-5135.64403132,0.000476,2]
[321465668,1712205044107,-154.06850799,0.00047806,30]
[321465669,1712205044116,-166.94916545,0.00047815,30]
[321465670,1712205044126,-510.18312938,0.00047836,30]
[321465671,1712205044136,-155.3609739,0.00047883,30]
[321465672,1712205044145,-168.30338035,0.00047888,30]
[321465673,1712205044155,-238.86502259,0.00047902,30]
[321465674,1712205044164,-238.86502259,0.00047908,30]
[321465676,1712205044174,-388.42808272,0.0004791,30]
[321465677,1712205044183,-155.3609739,0.00047912,30]
[321465678,1712205044194,-406.65,0.00047945,2]
[321465679,1712205044203,-400.026094,0.00047962,30]
[321465680,1712205044212,-155.0,0.00047966,30]
[321465681,1712205044222,-292.23916669,0.00047978,30]
[321465682,1712205044231,-400.026094,0.00047979,30]
[321465683,1712205044241,-2651.783291,0.00047979,30]
[321465684,1712205044250,-217.467859,0.00047979,30]
[321465685,1712205044261,-152.0,0.00047999,6]
[321465686,1712205044271,-3706.09151752,0.00048,2]
[321465687,1712205044285,-151.0,0.00048,120]
[321465688,1712205044294,-510.350444,0.00048,120]
[321465689,1712205044305,-155.0,0.00048,120]
[321465690,1712205044314,-604.22994504,0.00048014,30]
[321465692,1712205044323,-152.36417667,0.00048035,30]
[321465694,1712205044333,-157.64312318,0.0004806,30]
[321465695,1712205044342,-156.17754036,0.00048075,30]
[321465696,1712205044352,-167.52558322,0.00048078,30]
[321465697,1712205044361,-388.42808272,0.00048103,30]
[321465698,1712205044370,-155.3609739,0.00048169,30]
[321465699,1712205044379,-510.18312938,0.00048191,30]
[321465700,1712205044388,-500.0,0.00048218,30]
[321465701,1712205044397,-35541.2820938,0.00048219,7]
[321465702,1712205044406,-211.99904312,0.0004822,30]
[321465703,1712205044415,-302.2,0.0004822,2]
[321465704,1712205044425,-1182.53,0.00048226,2]
[321465705,1712205044434,-155.3609739,0.0004823,30]
[321465706,1712205044446,-153.89032083,0.00048241,30]
[321465707,1712205044455,-292.23916669,0.00048252,30]
[321465708,1712205044464,-155.3609739,0.00048257,30]
[321465709,1712205044473,-166.66666667,0.00048259,30]
[321465710,1712205044483,-154.06850799,0.00048265,30]
[321465711,1712205044494,-211.99904312,0.00048273,30]
[321465712,1712205044504,-153.89032083,0.00048274,30]
[321465713,1712205044513,-153.89032083,0.00048285,30]
[321465714,1712205044523,-388.42808272,0.0004829,30]
[321465715,1712205044533,-388.42808272,0.00048291,30]
[321465716,1712205044542,-160.20412195,0.00048319,30]
[321465717,1712205044551,-176.34670904,0.00048325,30]
[321465718,1712205044561,-292.23916669,0.00048341,30]
[321465719,1712205044570,-154.06850799,0.00048385,30]
[321465720,1712205044579,-153.89032083,0.0004843,30]
[321465721,1712205044588,-238.86502259,0.00048445,30]
[321465722,1712205044597,-155.3609739,0.00048448,30]
[321465723,1712205044606,-150.0,0.0004845,2]
[321465724,1712205044616,-197.97595336,0.00048488,30]
[321465725,1712205044625,-238.86502259,0.00048492,30]
[321465726,1712205044634,-176.34670904,0.00048519,30]
[321465727,1712205044644,-604.22994504,0.0004853,30]
[321465728,1712205044653,-400.026094,0.00048547,30]
[321465729,1712205044662,-400.026094,0.00048557,30]
[321465730,1712205044671,-2651.783291,0.00048557,30]
[321465731,1712205044680,-217.467859,0.00048557,30]
[321465732,1712205044691,-153.89032083,0.0004857,30]
[321465733,1712205044700,-157.64312318,0.00048593,30]
[321465734,1712205044710,-1103.62,0.000486,7]
[321465735,1712205044720,-1124.69,0.000486,7]
[321465736,1712205044730,-152.36417668,0.00048611,30]
[321465737,1712205044739,-302.2,0.0004862,2]
[321465738,1712205044749,-197.97595336,0.00048623,30]
[321465739,1712205044759,-197.97595336,0.00048632,30]
[321465740,1712205044769,-160.20412195,0.00048646,30]
[321465741,1712205044779,-153.89032083,0.00048657,30]
[321465742,1712205044789,-211.99904312,0.00048662,30]
[321465743,1712205044799,-155.54109467,0.00048684,30]
[321465744,1712205044809,-16773.18574315,0.000487,2]
[321465745,1712205044818,-19896.398039,0.000487,2]
[321465746,1712205044828,-1155.79,0.000487,7]
[321465747,1712205044837,-1436.0,0.000487,117]
[321465748,1712205044847,-151.0,0.000487,14]
[321465749,1712205044856,-151.0,0.000487,14]
[321465750,1712205044865,-151.0,0.000487,14]
[321465751,1712205044875,-238.86502259,0.00048711,30]
[321465752,1712205044884,-197.97595336,0.00048732,30]
[321465753,1712205044894,-151.0,0.0004876,2]
[321465754,1712205044902,-197.97595336,0.00048762,30]
[321465755,1712205044912,-1419.095,0.00048763,2]
[321465756,1712205044921,-878.399,0.00048763,2]
[321465757,1712205044930,-151.069,0.00048763,2]
[321465758,1712205044942,-150.0,0.00048763,2]
[321465759,1712205044952,-290.393,0.00048763,2]
[321465760,1712205044961,-183.783,0.00048763,2]
[321465761,1712205044971,-2209.93,0.00048763,2]
[321465762,1712205044980,-1271.0,0.00048763,2]
[321465763,1712205044989,-1050.0,0.00048763,2]
[321465764,1712205044999,-1140.0,0.00048763,2]
[321465765,1712205045010,-500.0,0.00048766,30]
[321465766,1712205045019,-151.0,0.00048795,120]
[321465767,1712205045029,-155.3609739,0.00048812,30]
[321465768,1712205045038,-153.62296114,0.00048812,30]
[321465769,1712205045049,-998.16,0.0004885,2]
[321465770,1712205045059,-181.76738167,0.00048859,30]
[321465771,1712205045068,-156.17754036,0.00048863,30]
[321465772,1712205045078,-510.18312938,0.00048872,30]
[321465773,1712205045088,-160.20412195,0.00048874,30]
[321465774,1712205045098,-156.25,0.00048894,2]
[321465775,1712205045107,-292.23916669,0.00048899,30]
[321465776,1712205045117,-153.62296114,0.00048924,30]
[321465777,1712205045127,-604.22994504,0.00048928,30]
[321465778,1712205045137,-157.64312318,0.00048933,30]
[321465779,1712205045147,-154.06850799,0.0004895,30]
[321465780,1712205045157,-156.17754036,0.00048974,30]
[321465781,1712205045166,-998.45,0.00048986,15]
[321465782,1712205045176,-155.01816655,0.00048996,30]
[321465783,1712205045185,-166.57077036,0.00049,30]
[321465784,1712205045198,-305318.53158646,0.00049,30]
[321465785,1712205045207,-3000.0,0.00049,2]
[321465786,1712205045217,-1211.0,0.00049,4]
[321465787,1712205045227,-217.35356112,0.00049014,30]
[321465788,1712205045236,-156.17754036,0.00049015,30]
[321465789,1712205045246,-604.22994504,0.00049035,30]
[321465790,1712205045257,-388.42808272,0.00049053,30]
[321465791,1712205045267,-1491.93307504,0.000491,14]
[321465792,1712205045279,-152.0,0.00049126,6]
[321465793,1712205045289,-157.64312318,0.00049132,30]
[321465794,1712205045298,-400.026094,0.00049132,30]
[321465795,1712205045309,-510.18312938,0.00049135,30]
[321465796,1712205045319,-157.64312318,0.00049139,30]
[321465797,1712205045328,-604.22994504,0.00049139,30]
[321465798,1712205045338,-211.99904312,0.0004917,30]
[321465799,1712205045347,-156.17754036,0.00049183,30]
[321465800,1712205045358,-157.040411,0.00049194,100]
[321465801,1712205045369,-604.22994504,0.00049206,30]
[321465802,1712205045379,-211.99904312,0.00049216,30]
[321465803,1712205045388,-388.42808272,0.00049236,30]
[321465804,1712205045397,-998.16,0.0004925,2]
[321465805,1712205045407,-153.62296114,0.00049264,30]
[321465806,1712205045416,-153.89032083,0.00049273,30]
[321465807,1712205045425,-163.87142962,0.00049302,30]
[321465808,1712205045434,-160.28413083,0.00049309,30]
[321465809,1712205045447,-500.0,0.00049314,90]
[321465810,1712205045457,-666.0,0.00049315,2]
[321465811,1712205045466,-151.0,0.00049315,14]
[321465812,1712205045476,-151.0,0.00049315,14]
[321465814,1712205045485,-3053.88067292,0.00049315,120]
[321465815,1712205045495,-151.0,0.00049315,14]
[321465816,1712205045506,-2129.0,0.00049315,60]
[321465817,1712205045515,-1000.0,0.00049315,7]
[321465818,1712205045525,-1000.0,0.00049315,7]
[321465819,1712205045534,-1000.0,0.00049315,7]
[321465820,1712205045543,-1000.0,0.00049315,7]
[321465821,1712205045553,-1000.0,0.00049315,7]
[321465822,1712205045562,-1000.0,0.00049315,7]
[321465823,1712205045571,-1000.0,0.00049315,7]
[321465824,1712205045581,-1000.0,0.00049315,7]
[321465825,1712205045590,-1000.0,0.00049315,7]
[321465826,1712205045599,-1000.0,0.00049315,7]
[321465827,1712205045609,-1000.0,0.00049315,7]
[321465828,1712205045618,-1000.0,0.00049315,7]
[321465829,1712205045628,-1000.0,0.00049315,7]
[321465830,1712205045638,-1000.0,0.00049315,7]
[321465831,1712205045647,-1000.0,0.00049315,7]
[321465832,1712205045657,-1000.0,0.00049315,7]
[321465833,1712205045666,-1000.0,0.00049315,7]
[321465834,1712205045676,-1000.0,0.00049315,7]
[321465835,1712205045685,-1000.0,0.00049315,7]
[321465836,1712205045697,-1000.0,0.00049315,7]
[321465837,1712205045707,-1000.0,0.00049315,7]
[321465838,1712205045716,-1000.0,0.00049315,7]
[321465840,1712205045726,-1000.0,0.00049315,7]
[321465842,1712205045736,-1000.0,0.00049315,7]
[321465844,1712205045746,-1000.0,0.00049315,7]
[321465847,1712205045759,-1000.0,0.00049315,7]
[321465849,1712205045769,-1000.0,0.00049315,7]
[321465851,1712205045778,-1000.0,0.00049315,7]
[321465853,1712205045788,-1000.0,0.00049315,7]
[321465855,1712205045798,-1000.0,0.00049315,7]
[321465857,1712205045807,-1000.0,0.00049315,7]
[321465859,1712205045816,-1000.0,0.00049315,7]
[321465861,1712205045826,-1000.0,0.00049315,7]
[321465863,1712205045836,-1000.0,0.00049315,7]
[321465865,1712205045846,-1000.0,0.00049315,7]
[321465867,1712205045855,-1000.0,0.00049315,7]
[321465869,1712205045865,-1000.0,0.00049315,7]
[321465871,1712205045875,-1000.0,0.00049315,7]
[321465873,1712205045884,-1000.0,0.00049315,7]
[321465875,1712205045893,-1000.0,0.00049315,7]
[321465877,1712205045903,-1000.0,0.00049315,7]
[321465879,1712205045912,-1000.0,0.00049315,7]
[321465881,1712205045922,-1000.0,0.00049315,7]
[321465883,1712205045931,-1000.0,0.00049315,7]
[321465885,1712205045940,-1000.0,0.00049315,7]
[321465886,1712205045950,-1000.0,0.00049315,7]
[321465888,1712205045959,-1000.0,0.00049315,7]
[321465890,1712205045969,-1000.0,0.00049315,7]
[321465892,1712205045978,-1000.0,0.00049315,7]
[321465894,1712205045987,-1000.0,0.00049315,7]
[321465896,1712205045996,-1000.0,0.00049315,7]
[321465898,1712205046006,-1000.0,0.00049315,7]
[321465900,1712205046015,-1000.0,0.00049315,7]
[321465901,1712205046025,-1000.0,0.00049315,7]
[321465903,1712205046035,-1000.0,0.00049315,7]
[321465905,1712205046045,-1000.0,0.00049315,7]
[321465907,1712205046141,-1000.0,0.00049315,7]
[321465908,1712205046150,-1000.0,0.00049315,7]
[321465909,1712205046159,-1000.0,0.00049315,7]
[321465910,1712205046168,-1000.0,0.00049315,7]
[321465911,1712205046177,-1000.0,0.00049315,7]
[321465912,1712205046185,-1000.0,0.00049315,7]
[321465913,1712205046195,-1000.0,0.00049315,7]
[321465914,1712205046204,-1000.0,0.00049315,7]
[321465915,1712205046213,-1000.0,0.00049315,7]
[321465916,1712205046222,-1000.0,0.00049315,7]
[321465917,1712205046231,-1000.0,0.00049315,7]
[321465918,1712205046240,-1000.0,0.00049315,7]
[321465920,1712205046249,-1000.0,0.00049315,7]
[321465921,1712205046259,-1000.0,0.00049315,7]
[321465922,1712205046268,-1000.0,0.00049315,7]
[321465923,1712205046279,-1000.0,0.00049315,7]
[321465924,1712205046288,-1000.0,0.00049315,7]
[321465925,1712205046298,-1000.0,0.00049315,7]
[321465926,1712205046306,-1000.0,0.00049315,7]
[321465927,1712205046315,-1000.0,0.00049315,7]
[321465928,1712205046325,-1000.0,0.00049315,7]
[321465929,1712205046334,-1000.0,0.00049315,7]
[321465930,1712205046343,-1000.0,0.00049315,7]
[321465931,1712205046352,-1000.0,0.00049315,7]
[321465932,1712205046362,-1000.0,0.00049315,7]
[321465933,1712205046370,-1000.0,0.00049315,7]
[321465934,1712205046379,-1000.0,0.00049315,7]
[321465935,1712205046388,-1000.0,0.00049315,7]
[321465936,1712205046397,-1000.0,0.00049315,7]
[321465937,1712205046406,-1000.0,0.00049315,7]
[321465938,1712205046415,-1000.0,0.00049315,7]
[321465939,1712205046424,-1000.0,0.00049315,7]
[321465940,1712205046433,-1000.0,0.00049315,7]
[321465941,1712205046442,-1000.0,0.00049315,7]
[321465942,1712205046452,-1000.0,0.00049315,7]
[321465943,1712205046461,-1000.0,0.00049315,7]
[321465944,1712205046470,-1000.0,0.00049315,7]
[321465945,1712205046478,-1000.0,0.00049315,7]
[321465946,1712205046487,-1000.0,0.00049315,7]
[321465947,1712205046496,-1000.0,0.00049315,7]
[321465948,1712205046505,-1000.0,0.00049315,7]
[321465949,1712205046513,-1000.0,0.00049315,7]
[321465950,1712205046522,-1000.0,0.00049315,7]
[321465951,1712205046531,-1000.0,0.00049315,7]
[321465952,1712205046540,-151.0,0.00049315,120]
[321465953,1712205046549,-153.38287,0.00049315,120]
[321465954,1712205046558,-151.0,0.00049315,120]
[321465955,1712205046567,-151.0,0.00049315,120]
[321465956,1712205046576,-151.0,0.00049315,120]
[321465957,1712205046585,-151.0,0.00049315,120]
[321465958,1712205046594,-151.0,0.00049315,120]
[321465959,1712205046603,-151.0,0.00049315,120]
[321465960,1712205046612,-151.0,0.00049315,120]
[321465961,1712205046621,-151.0,0.00049315,120]
[321465962,1712205046630,-156.82969,0.00049315,45]
[321465963,1712205046639,-151.0,0.00049315,60]
[321465964,1712205046648,-151.0,0.00049315,60]
[321465965,1712205046658,-152.94691,0.00049315,120]
[321465966,1712205046667,-151.0,0.00049315,120]
[321465967,1712205046676,-151.0,0.00049315,120]
[321465968,1712205046685,-151.0,0.00049315,120]
[321465969,1712205046695,-151.0,0.00049315,120]
[321465970,1712205046703,-151.0,0.00049315,120]
[321465971,1712205046712,-151.0,0.00049315,120]
[321465972,1712205046722,-156.151676,0.00049315,120]
[321465973,1712205046731,-151.0,0.00049315,120]
[321465974,1712205046740,-151.0,0.00049315,120]
[321465975,1712205046750,-151.0,0.00049315,120]
[321465976,1712205046759,-151.0,0.00049315,120]
[321465977,1712205046768,-151.0,0.00049315,120]
[321465978,1712205046778,-151.0,0.00049315,120]
[321465979,1712205046787,-151.0,0.00049315,120]
[321465980,1712205046797,-151.0,0.00049315,120]
[321465981,1712205046806,-151.0,0.00049315,120]
[321465982,1712205046815,-151.0,0.00049315,120]
[321465983,1712205046825,-151.0,0.00049315,120]
[321465984,1712205046834,-151.0,0.00049315,120]
[321465985,1712205046843,-151.0,0.00049315,7]
[321465986,1712205046852,-151.0,0.00049315,7]
[321465987,1712205046862,-151.0,0.00049315,7]
[321465988,1712205046871,-151.0,0.00049315,7]
[321465989,1712205046880,-151.0,0.00049315,7]
[321465990,1712205046888,-260.473878,0.00049315,7]
[321465991,1712205046898,-151.0,0.00049315,120]
[321465992,1712205046908,-151.0,0.00049315,120]
[321465993,1712205046917,-151.0,0.00049315,120]
[321465994,1712205046927,-151.0,0.00049315,120]
[321465995,1712205046938,-151.0,0.00049315,120]
[321465996,1712205046948,-151.0,0.00049315,120]
[321465997,1712205046957,-151.0,0.00049315,120]
[321465998,1712205046966,-151.0,0.00049315,120]
[321465999,1712205046975,-151.0,0.00049315,120]
[321466000,1712205046984,-151.901025,0.00049315,120]
[321466001,1712205046993,-176.743414,0.00049315,120]
[321466002,1712205047002,-279.871932,0.00049315,14]
[321466003,1712205047011,-279.871932,0.00049315,14]
[321466004,1712205047020,-279.871932,0.00049315,14]
[321466005,1712205047030,-279.871932,0.00049315,14]
[321466006,1712205047039,-279.871932,0.00049315,14]
[321466007,1712205047048,-279.871932,0.00049315,14]
[321466008,1712205047058,-279.871932,0.00049315,14]
[321466009,1712205047067,-279.871932,0.00049315,14]
[321466010,1712205047077,-323.357105,0.00049315,120]
[321466011,1712205047087,-340.729012,0.00049315,120]
[321466012,1712205047097,-323.357105,0.00049315,120]
[321466013,1712205047106,-340.729012,0.00049315,120]
[321466014,1712205047115,-323.357105,0.00049315,120]
[321466015,1712205047124,-340.729012,0.00049315,120]
[321466016,1712205047134,-323.357105,0.00049315,120]
[321466017,1712205047143,-340.729012,0.00049315,120]
[321466018,1712205047152,-340.729012,0.00049315,120]
[321466019,1712205047162,-323.357105,0.00049315,120]
[321466020,1712205047170,-340.729012,0.00049315,120]
[321466021,1712205047179,-340.729012,0.00049315,120]
[321466022,1712205047188,-340.729012,0.00049315,120]
[321466023,1712205047198,-323.357105,0.00049315,120]
[321466024,1712205047207,-323.357105,0.00049315,120]
[321466025,1712205047217,-323.357105,0.00049315,120]
[321466026,1712205047225,-151.0,0.00049315,120]
[321466027,1712205047235,-151.0,0.00049315,120]
[321466028,1712205047245,-153.463366,0.00049315,120]
[321466029,1712205047255,-151.0,0.00049315,120]
[321466030,1712205047265,-151.0,0.00049315,120]
[321466031,1712205047274,-171.185208,0.00049315,120]
[321466032,1712205047285,-151.0,0.00049315,120]
[321466033,1712205047295,-151.0,0.00049315,120]
[321466034,1712205047306,-151.0,0.00049315,120]
[321466035,1712205047315,-151.0,0.00049315,120]
[321466036,1712205047325,-151.0,0.00049315,120]
[321466037,1712205047334,-151.0,0.00049315,120]
[321466038,1712205047343,-151.0,0.00049315,120]
[321466039,1712205047354,-205.856093,0.00049315,120]
[321466040,1712205047364,-151.778016,0.00049315,7]
[321466041,1712205047375,-339.933706,0.00049315,120]
[321466042,1712205047385,-339.933706,0.00049315,120]
[321466043,1712205047395,-339.933706,0.00049315,120]
[321466044,1712205047405,-339.933706,0.00049315,120]
[321466045,1712205047414,-151.0,0.00049315,120]
[321466046,1712205047423,-153.253207,0.00049315,120]
[321466047,1712205047432,-339.933706,0.00049315,120]
[321466048,1712205047441,-339.933706,0.00049315,120]
[321466049,1712205047451,-339.933706,0.00049315,120]
[321466050,1712205047460,-339.933706,0.00049315,120]
[321466051,1712205047469,-151.0,0.00049315,21]
[321466052,1712205047479,-151.0,0.00049315,21]
[321466053,1712205047488,-218.937618,0.00049315,21]
[321466054,1712205047498,-151.0,0.00049315,120]
[321466055,1712205047507,-151.0,0.00049315,120]
[321466056,1712205047517,-151.0,0.00049315,120]
[321466057,1712205047527,-151.0,0.00049315,120]
[321466058,1712205047537,-151.0,0.00049315,120]
[321466059,1712205047548,-151.0,0.00049315,120]
[321466060,1712205047557,-198.86149,0.00049315,120]
[321466061,1712205047568,-198.86149,0.00049315,120]
[321466062,1712205047578,-198.86149,0.00049315,120]
[321466063,1712205047588,-151.0,0.00049315,120]
[321466064,1712205047598,-151.0,0.00049315,120]
[321466065,1712205047608,-151.0,0.00049315,120]
[321466066,1712205047618,-198.86149,0.00049315,120]
[321466067,1712205047627,-198.86149,0.00049315,120]
[321466068,1712205047636,-151.0,0.00049315,120]
[321466069,1712205047645,-198.86149,0.00049315,120]
[321466070,1712205047654,-151.0,0.00049315,120]
[321466071,1712205047665,-151.0,0.00049315,120]
[321466072,1712205047675,-151.0,0.00049315,120]
[321466073,1712205047684,-256.233287,0.00049315,120]
[321466074,1712205047694,-185.406329,0.00049315,120]
[321466075,1712205047703,-185.406329,0.00049315,120]
[321466076,1712205047712,-185.406329,0.00049315,120]
[321466077,1712205047722,-185.406329,0.00049315,120]
[321466078,1712205047733,-185.406329,0.00049315,120]
[321466079,1712205047744,-185.406329,0.00049315,120]
[321466080,1712205047756,-151.0,0.00049315,120]
[321466081,1712205047766,-284.318097,0.00049315,120]
[321466082,1712205047777,-151.0,0.00049315,120]
[321466083,1712205047787,-154.306058,0.00049315,120]
[321466084,1712205047797,-151.0,0.00049315,120]
[321466085,1712205047807,-151.0,0.00049315,120]
[321466086,1712205047817,-184.124515,0.00049315,120]
[321466087,1712205047827,-151.0,0.00049315,120]
[321466088,1712205047837,-151.0,0.00049315,120]
[321466089,1712205047846,-151.0,0.00049315,120]
[321466090,1712205047857,-151.0,0.00049315,120]
[321466091,1712205047866,-160.508222,0.00049315,120]
[321466092,1712205047876,-193.775026,0.00049315,120]
[321466093,1712205047886,-193.775026,0.00049315,120]
[321466094,1712205047896,-193.775026,0.00049315,120]
[321466095,1712205047906,-193.775026,0.00049315,120]
[321466096,1712205047917,-193.775026,0.00049315,120]
[321466097,1712205047926,-193.775026,0.00049315,120]
[321466098,1712205047937,-338.216261,0.00049315,120]
[321466099,1712205047946,-338.216261,0.00049315,120]
[321466100,1712205047956,-338.216261,0.00049315,120]
[321466101,1712205047967,-338.216261,0.00049315,120]